Cogmind - Beta 12 X6 @@@ ROGUE MODE // 2023.02.23 @ 17:06:26 Player: ArabianSandBoa Result: Destroyed by Y-45 Defender with Heavy Assault Rifle Performance ------------- Evolutions (2) 1000 Regions Visited (9) 1800 Robots Destroyed (112) 560 Value Destroyed (2899) 2899 Prototype IDs (31) 620 Alien Tech Used (0) 0 Bonus (336) 336 TOTAL SCORE: 7215 Bonus ------- High Alert Combat Kills 328 Follower Combat Kills 147 Entered Garrisons 200 Friendly Fire -339 Cogmind --------- Core Integrity 0/550 Matter 10/300 Energy 8/290 System Corruption 20% Temperature Cool (14) Movement Flying (349) Ox8 Location -8/Materials Parts ------- > --- POWER (1) -------- Reinforced Deuterium Engine > --- PROPULSION (3) --- Surge Thruster Surge Thruster Surge Thruster > --- UTILITY (5) ------ High-capacity Storage Unit Hardened Medium Armor Plating Force Field Hacking Suite Hacking Suite > --- WEAPON (2) ------- Magnetic Acceleration Cannon Heavy Mace > --- INVENTORY (20) --- Surge Thruster High-capacity Storage Unit ECM Suite Reaction Control System Cloak of Protection Force Field Autogun Magnetic Acceleration Cannon Magnetic Acceleration Cannon Magnetic Acceleration Cannon Remote Datajack Plasma Cutter Segregator Peak State ------------ > --- POWER ------------ Light Nuclear Core > --- PROPULSION ------- Improved Medium Treads Improved Medium Treads Improved Medium Treads > --- UTILITY ---------- Improved Cooling System High-capacity Storage Unit Layered Medium Armor Plating Force Field Hacking Suite > --- WEAPON ----------- Magnetic Acceleration Cannon Makeshift Axe > --- INVENTORY -------- Reinforced Deuterium Engine Surge Thruster Surge Thruster Surge Thruster Surge Thruster High-capacity Storage Unit Target Analyzer ECM Suite Reaction Control System Cloak of Protection Hardened Medium Armor Plating Force Field Hacking Suite Magnetic Acceleration Cannon Magnetic Acceleration Cannon Advanced EMP Blaster Rocket Launcher Remote Datajack Plasma Cutter Segregator [Rating: 52] Favorites ----------- Power Improved Ion Engine Engine Improved Ion Engine Power Core Light Nuclear Core Propulsion Advanced Treads Treads Advanced Treads Leg Aluminum Leg Wheel Wheel Flight Unit Surge Thruster Utility Hacking Suite Device Improved Cooling System Storage High-capacity Storage Unit Processor Targeting Computer Hackware Hacking Suite Protection Hardened Medium Armor Plating Weapon Improved EM Shotgun Energy Gun Improved EM Shotgun Energy Cannon Advanced Beam Cannon Ballistic Gun Autogun Ballistic Cannon Magnetic Acceleration Cannon Launcher Advanced EMP Blaster Special Weapon Mining Laser Impact Weapon Heavy Mace Slashing Weapon Makeshift Axe Build | -11 -10 -10 -9 -9 -9 -8 -8 -8 -8 ------- Run | Jun Mat Min Mat Min Exi Min Mat Gar Mat Slots Evolved 4 | . . . 2 . . . 2 . . Power . | . . . . . . . . . . Propulsion 1 | . . . 1 . . . . . . Utility 3 | . . . 1 . . . 2 . . Weapon . | . . . . . . . . . . Parts Attached 119 | 4 2 2 36 . 3 3 15 53 1 Power 11 | 1 1 1 1 . . 1 3 3 . Engine 9 | 1 1 . 1 . . 1 3 2 . Core 2 | . . 1 . . . . . 1 . Reactor . | . . . . . . . . . . Propulsion 29 | 2 . . 17 . . . 1 9 . Treads 13 | . . . 6 . . . 1 6 . Leg . | . . . . . . . . . . Wheel 5 | 2 . . 3 . . . . . . Hover . | . . . . . . . . . . Flight 11 | . . . 8 . . . . 3 . Utility 26 | . 1 1 5 . 1 1 5 12 . Device 4 | . . . . . . . 1 3 . Storage 4 | . . 1 2 . 1 . . . . Processor 1 | . . . . . . . 1 . . Hackware 6 | . . . 2 . . . 3 1 . Protection 11 | . 1 . 1 . . 1 . 8 . Artifact . | . . . . . . . . . . Weapon 53 | 1 . . 13 . 2 1 6 29 1 Energy Gun 5 | . . . 1 . 2 . 2 . . Energy Cannon 5 | . . . . . . . 1 4 . Ballistic Gun 19 | 1 . . 8 . . 1 2 7 . Ballistic Cannon 4 | . . . 1 . . . . 3 . Launcher 10 | . . . . . . . 1 9 . Special Weapon 2 | . . . 2 . . . . . . Impact Weapon 2 | . . . 1 . . . . . 1 Slashing Weapon 6 | . . . . . . . . 6 . Piercing Weapon . | . . . . . . . . . . Special Melee Weapon . | . . . . . . . . . . Unidentified Prototypes 6 | . . . 3 . . . 3 . . Corrupted Parts 1 | . . . . . . 1 . . . System Corruption 2 | . . . . . . 2 . . . Parts Lost 33 | . 1 . 6 . . 1 3 22 . Power 4 | . 1 . 1 . . . 1 1 . Propulsion 10 | . . . 3 . . . . 7 . Utility 11 | . . . 1 . . 1 1 8 . Weapon 8 | . . . 1 . . . 1 6 . Highest Loss Streak 7 | . 1 . 2 . . 1 1 7 . To Critical Strikes 1 | . . . . . . . . 1 . Average Slot Usage (%) 92 | . 90 98 94 100 100 98 96 82 90 Engine 7 | . 12 . 5 11 11 11 9 3 9 Core 1 | . . 12 2 . . . . 2 . Treads 18 | . . . 18 33 33 33 27 14 . Wheel 4 | . 28 28 6 . . . . . . Flight 3 | . . . 7 . . . . 4 27 Device 2 | . . . . . . . 1 7 9 Storage 10 | . 14 14 11 11 11 11 9 9 9 Hackware 10 | . . . 15 11 11 . 21 13 18 Protection 11 | . 7 14 6 11 11 20 9 12 9 Energy Gun 5 | . . . . . 18 22 8 . . Ballistic Gun 9 | . 28 28 19 22 3 . 5 4 . Ballistic Cannon 1 | . . . . . . . . 3 9 Slashing Weapon 1 | . . . . . . . . 3 . Naked Turns . | . . . . . . . . . . Heaviest Build 81 | 14 21 24 41 41 61 72 72 79 81 Greatest Support 90 | 20 20 20 66 66 66 66 66 90 9 Greatest Overweight (x) 8 | . 1 1 1 . . 1 1 8 8 Average Overweight (x) . | . . . . . . . . 1 8 Largest Inventory Capacity 20 | 8 8 10 15 15 20 20 20 20 20 Average Capacity 16 | 8 8 9 11 15 15 20 20 20 20 Most Carried 20 | 6 8 10 15 15 16 20 20 20 13 Average Carried 15 | 6 7 9 10 15 15 18 19 17 12 Final Capacity 20 | 8 8 10 15 15 20 20 20 20 20 Final Carried 20 | 6 8 10 15 15 16 20 19 12 13 Class Distribution -------------------- 68% | Mutant 29% | Hacker-Mutant Dominant Class ---------------- Mutant | -10/Materials Mutant | -10/Mines Mutant | -9/Materials Mutant | -9/Mines Mutant | -9/Exiles Mutant | -8/Mines Hacker-Mutant | -8/Materials Mutant | -8/Garrison Hacker-Mutant | -8/Materials Resources | -11 -10 -10 -9 -9 -9 -8 -8 -8 -8 ----------- Run | Jun Mat Min Mat Min Exi Min Mat Gar Mat Matter Collected 2713 | 200 279 82 591 122 71 25 338 978 27 Remotely . | . . . . . . . . . . Salvage Created 4223 | . 485 53 871 130 144 417 1064 1032 27 Parts 228 | . 20 1 57 4 5 18 54 68 1 Haulers Intercepted 9 | . 2 . 3 . . . 4 . . Recyclers Shooed 3 | . 1 . 1 . . . 1 . . Parts Field Recycled . | . . . . . . . . . . Retrieved Matter . | . . . . . . . . . . Parts Self-Destructed . | . . . . . . . . . . Prevented . | . . . . . . . . . . Kills | -11 -10 -10 -9 -9 -9 -8 -8 -8 -8 ------- Run | Jun Mat Min Mat Min Exi Min Mat Gar Mat Combat Hostiles Destroyed 84 | . 7 . 19 3 . 6 16 33 . Melee 6 | . . . . . . . . 6 . Guns 50 | . 7 . 19 3 . 3 12 6 . Cannons 13 | . . . . . . . 3 10 . AOE 13 | . . . . . . 2 . 11 . Classes Destroyed 16 | . 5 . 4 . . 2 1 4 . Worker 4 | . . . 2 . . . 1 . 1 Tunneler 1 | . . . . . . 1 . . . Hauler 9 | . 2 . 3 . . . 4 . . Recycler 6 | . 2 1 1 . . . 2 . . Operator 2 | . 1 . 1 . . . . . . Watcher 4 | . . . 2 . . . 2 . . Swarmer 33 | . 3 . 10 . . . 7 13 . Cutter 3 | . . . . . . . . 3 . Saboteur 2 | . . . . . . . . 2 . Grunt 31 | . 4 . 6 3 . 7 5 6 . Brawler 2 | . . . 1 . . . . 1 . Duelist 2 | . . . . . . 1 . 1 . Sentry 6 | . . . 2 . . . 3 1 . Hunter 3 | . . . . . . . 1 2 . Programmer 3 | . . . . . . . . 3 . Behemoth 1 | . . . . . . . . 1 . Best Kill Streak 7 | . 4 1 7 3 . 2 7 6 1 Combat Bots Only 7 | . 3 . 7 3 . 2 6 6 . Max Kills in Single Turn 2 | . 1 1 2 1 . 2 2 2 1 Gunslinging . | . . . . . . . . . . Exploded 2 | . . . . . . 1 . 2 . Melee 1 | . . . . . . . . 1 . Uniques/NPCs Destroyed . | . . . . . . . . . . Combat | -11 -10 -10 -9 -9 -9 -8 -8 -8 -8 -------- Run | Jun Mat Min Mat Min Exi Min Mat Gar Mat Damage Taken 5239 | . 213 . 753 55 . 325 629 3114 150 Core 815 | . 61 . 175 . . 15 54 470 40 Absorbed by Shields 117 | . . . . . . . . 8 109 Core Remaining (%) 75 | 100 . 75 . . . 52 . . . Volleys Fired 332 | . 45 3 81 6 6 16 62 113 . Largest 2 | . 2 2 2 2 2 2 2 2 . Hottest 143 | . 40 40 100 46 90 90 113 143 . Shots Fired 566 | . 90 6 147 12 12 33 120 146 . Gun 464 | . 90 6 143 12 12 33 104 64 . Cannon 77 | . . . 3 . . . 16 58 . Launcher 24 | . . . . . . . . 24 . Special 1 | . . . 1 . . . . . . Kinetic 401 | . 90 6 146 12 2 1 46 98 . Thermal 38 | . . . 1 . . . 16 21 . Explosive 18 | . . . . . . . . 18 . Electromagnetic 109 | . . . . . 10 32 58 9 . Robot Hit Streak 16 | . 10 3 10 3 7 9 16 10 . Robot Miss Streak 5 | . 2 1 3 1 4 4 5 4 . Penetration Max . | . . . . . . . . . . Secondary Targets 6 | . . . 4 . . 1 1 . . Max Gunslinging Chain 1 | . . . 1 . . 1 1 . . Shots Hit Robots 385 | . 61 3 97 6 8 28 82 100 . Core Hits 195 | . 25 1 41 5 5 16 42 59 1 Critical Kills 2 | . 2 . . . . . . . . Critical Parts Destroyed 3 | . 1 . . . 1 . . 1 . Critical Strikes 16 | . 3 . 1 . 1 . . 11 . Destroy 5 | . 3 . . . 1 . . 1 . Blast 1 | . . . 1 . . . . . . Sever 10 | . . . . . . . . 10 . Melee Attacks 72 | . . . 1 . . . . 71 . Impact 1 | . . . 1 . . . . . . Slashing 71 | . . . . . . . . 71 . Piercing . | . . . . . . . . . . Sneak Attacks . | . . . . . . . . . . Combat Hostiles . | . . . . . . . . . . Follow-up Attacks 3 | . . . . . . . . 3 . Damage Inflicted 8182 | . 709 43 1259 103 157 788 1496 3608 19 Guns 4633 | . 709 43 1220 103 123 438 1361 636 . Cannons 850 | . . . 39 . . . 135 676 . Explosions 1347 | . . . . . 34 350 . 963 . Melee 1323 | . . . . . . . . 1323 . Ramming 29 | . . . . . . . . 10 19 Kinetic 3751 | . 709 43 1259 103 32 . 490 1115 . Thermal 668 | . . . . . 34 350 135 149 . Explosive 824 | . . . . . . . . 824 . Electromagnetic 1587 | . . . . . 91 438 871 187 . Impact . | . . . . . . . . . . Slashing 1323 | . . . . . . . . 1323 . Piercing . | . . . . . . . . . . Highest Corruption 20 | . . . . . . 2 . 20 20 Average Corruption 18 | . . . . . . 2 . 17 20 Corruption Purged . | . . . . . . . . . . Corruption Blocked . | . . . . . . . . . . Effects 125 | . . . . . . . . 108 17 Message Errors 31 | . . . . . . . . 27 4 Matter Fused 23 | . . . . . . . . 22 1 Heat Flow Errors 13 | . . . . . . . . 11 2 Energy Discharges 15 | . . . . . . . . 14 1 Parts Rejected 1 | . . . . . . . . 1 . Data Loss (minor) 18 | . . . . . . . . 10 8 Data Loss (major) 6 | . . . . . . . . 5 1 Misfires 6 | . . . . . . . . 6 . Alerts 3 | . . . . . . . . 3 . Misdirections 2 | . . . . . . . . 2 . Weapon Failures 7 | . . . . . . . . 7 . Overload Shots . | . . . . . . . . . . Overflow Damage 145 | . . . . . . 11 10 124 . Projectiles 32 | . . . . . . . 10 22 . Explosions 88 | . . . . . . 11 . 77 . Melee 25 | . . . . . . . . 25 . Knockbacks 5 | . . . . . . . . 5 . Impact . | . . . . . . . . . . Kinetic 5 | . . . . . . . . 5 . Secondary . | . . . . . . . . . . Self-Inflicted Damage 417 | . . . . . . 41 . 367 9 Shots 14 | . . . . . . 1 . 13 . Rammed 5 | . . . . . . . . 3 2 Targets Rammed 5 | . . . . . . . . 3 2 Kicked . | . . . . . . . . . . Crushed . | . . . . . . . . . . Highest Temperature 384 | . 9 . 39 41 117 325 384 233 261 Average Temperature 75 | . 5 . 12 17 44 119 78 63 123 Received Heat Transfer 1059 | . 96 . 201 33 . 72 189 426 42 Effects 3 | . . . . . . 1 1 . 1 Energy Bleed 2 | . . . . . . 1 1 . . Interference 1 | . . . . . . . . . 1 Siege Activations . | . . . . . . . . . . Robots Corrupted 2 | . . . . . . 1 1 . . Combat Hostiles 2 | . . . . . . 1 1 . . Parts Fried 7 | . . . . . . 2 5 . . Impact Corruptions . | . . . . . . . . . . Robots Melted . | . . . . . . . . . . Combat Hostiles . | . . . . . . . . . . Parts Melted . | . . . . . . . . . . Heat Transferred 1031 | . . . . . 50 500 222 259 . Parts Sabotaged 2 | . . . . . . . . 2 . Parts Stolen . | . . . . . . . . . . Parts Stripped . | . . . . . . . . . . Power Chain Reactions 6 | . . . . . 1 3 . 2 . Missiles Intercepted . | . . . . . . . . . . Alert | -11 -10 -10 -9 -9 -9 -8 -8 -8 -8 ------- Run | Jun Mat Min Mat Min Exi Min Mat Gar Mat Peak Influence 1534 | . 228 45 533 218 . 100 278 1534 770 Initial 747 | . . 39 . 148 . . 31 55 747 Average 338 | . 110 32 354 102 . 70 113 637 734 Maximum Alert Level 4 | . 1 . 2 1 . . 1 4 3 Low Security (%) 56 | 100 75 100 20 98 . 100 84 25 . Level 1 15 | . 24 . 40 1 . . 15 21 . Level 2 7 | . . . 39 . . . . 9 7 Level 3 13 | . . . . . . . . 25 92 Level 4 6 | . . . . . . . . 18 . Level 5 . | . . . . . . . . . . High Security . | . . . . . . . . . . Max Security . | . . . . . . . . . . Squads Dispatched 11 | . 2 . 6 . . . 2 . 1 Investigation 7 | . 1 . 4 . . . 2 . . Extermination . | . . . . . . . . . . Reinforcement 3 | . 1 . 2 . . . . . . Assault 1 | . . . . . . . . . 1 Garrison . | . . . . . . . . . . Intercept . | . . . . . . . . . . Searches Triggered . | . . . . . . . . . . Construction Impeded . | . . . . . . . . . . Haulers Reinforced . | . . . . . . . . . . Active Scanning Responses . | . . . . . . . . . . Cargo Convoy Interrupts . | . . . . . . . . . . Stealth | -11 -10 -10 -9 -9 -9 -8 -8 -8 -8 --------- Run | Jun Mat Min Mat Min Exi Min Mat Gar Mat Distress Signals 11 | . 2 . 4 . . . 5 . . Communications Jammed . | . . . . . . . . . . Distress Signals . | . . . . . . . . . . Times Spotted 122 | . 12 . 35 3 . 8 27 34 3 Peak Tracking Total 9 | . 3 . 9 3 . 3 4 4 4 Tactical Retreats 12 | . 1 . 4 . . 1 2 4 . Traps | -11 -10 -10 -9 -9 -9 -8 -8 -8 -8 ------- Run | Jun Mat Min Mat Min Exi Min Mat Gar Mat Traps Triggered 7 | . 1 . 1 . . . . 5 . Indirectly 1 | . . . . . . . . 1 . Trap Hack Attempts . | . . . . . . . . . . Triggered . | . . . . . . . . . . Disarmed . | . . . . . . . . . . Reprogrammed . | . . . . . . . . . . Reused . | . . . . . . . . . . Traps Extracted . | . . . . . . . . . . Installed . | . . . . . . . . . . Triggered . | . . . . . . . . . . Machines | -11 -10 -10 -9 -9 -9 -8 -8 -8 -8 ---------- Run | Jun Mat Min Mat Min Exi Min Mat Gar Mat Machines Disabled 5 | . . . 1 . . . . 4 . Max in Single Turn 2 | . . . . . . . . 2 . Machines Repaired . | . . . . . . . . . . Machines Sabotaged . | . . . . . . . . . . Overloaded Fab Kills . | . . . . . . . . . . Hacking | -11 -10 -10 -9 -9 -9 -8 -8 -8 -8 --------- Run | Jun Mat Min Mat Min Exi Min Mat Gar Mat Machines Accessed 20 | . 6 . 5 . 1 1 4 2 1 Terminals 14 | . 4 . 4 . . 1 2 2 1 Fabricators . | . . . . . . . . . . Repair Stations . | . . . . . . . . . . Recycling Units 4 | . 2 . 1 . . . 1 . . Scanalyzers . | . . . . . . . . . . Garrison Access 1 | . . . . . . . 1 . . Total Hacks 60 | . 19 . 16 . 1 2 13 5 4 Successful 36 | . 11 . 8 . 1 1 11 1 3 Failed 24 | . 8 . 8 . . 1 2 4 1 Catastrophic 3 | . . . 1 . . 1 . 1 . Database Lockouts . | . . . . . . . . . . Manual 22 | . 6 . 7 . 2 2 5 . . Terminals 46 | . 13 . 14 . . 2 8 5 4 Fabricators . | . . . . . . . . . . Repair Stations . | . . . . . . . . . . Recycling Units 12 | . 6 . 2 . . . 4 . . Scanalyzers . | . . . . . . . . . . Garrison Access 1 | . . . . . . . 1 . . Terminal Hacks 22 | . 6 . 5 . 1 1 5 1 3 Robot Analysis 6 | . 2 . 1 . . 1 2 . . Prototype ID Bank 1 | . . . 1 . . . . . . Branch Access Points 1 | . . . 1 . . . . . . Emergency Access Points 2 | . . . . . . . . 1 1 Unreport Threat 1 | . . . . . . . 1 . . Hauler Manifests 4 | . 1 . 1 . . . 1 . 1 Zone Layout 6 | . 3 . 1 . . . 1 . 1 EX-Prototype ID Bank 1 | . . . . . 1 . . . . Fabricator Hacks . | . . . . . . . . . . Repair Station Hacks . | . . . . . . . . . . Recycling Unit Hacks 8 | . 4 . 1 . . . 3 . . Report Inventory 5 | . 2 . 1 . . . 2 . . Retrieve Components 3 | . 2 . . . . . 1 . . Scanalyzer . | . . . . . . . . . . Garrison Access Hacks 1 | . . . . . . . 1 . . Unlock Access 1 | . . . . . . . 1 . . Unauthorized Hacks 5 | . 1 . 2 . . . 2 . . Terminals 4 | . 1 . 1 . . . 2 . . Botnet 4 | . 1 . 1 . . . 2 . . Fabricators . | . . . . . . . . . . Repair Stations . | . . . . . . . . . . Recycling Units 1 | . . . 1 . . . . . . Tunnel 1 | . . . 1 . . . . . . Scanalyzers . | . . . . . . . . . . Garrison Access . | . . . . . . . . . . Data Cores Recovered . | . . . . . . . . . . Used . | . . . . . . . . . . Hacking Detections 15 | . 5 . 3 . . 1 3 2 1 Full Trace Events 8 | . 1 . 3 . . 1 2 1 . Feedback Events . | . . . . . . . . . . Feedback Blocked . | . . . . . . . . . . Robot Schematics Acquired . | . . . . . . . . . . Robots Built . | . . . . . . . . . . Authchips . | . . . . . . . . . . Time . | . . . . . . . . . . Total Robot Build Rating . | . . . . . . . . . . Part Schematics Acquired . | . . . . . . . . . . Parts Built . | . . . . . . . . . . Authchips . | . . . . . . . . . . Time . | . . . . . . . . . . Total Part Build Rating . | . . . . . . . . . . Parts Repaired . | . . . . . . . . . . Time . | . . . . . . . . . . Parts Recycled . | . . . . . . . . . . Recycled Matter . | . . . . . . . . . . Retrieved Matter . | . . . . . . . . . . Retrieved Components 19 | . 9 . . . . . 10 . . Parts Scanalyzed . | . . . . . . . . . . Part Schematics Acquired . | . . . . . . . . . . Parts Damaged . | . . . . . . . . . . Bothacking | -11 -10 -10 -9 -9 -9 -8 -8 -8 -8 ------------ Run | Jun Mat Min Mat Min Exi Min Mat Gar Mat Used RIF Installer . | . . . . . . . . . . Robots Hacked . | . . . . . . . . . . Non-combat . | . . . . . . . . . . Combat . | . . . . . . . . . . Robot Hacks Applied . | . . . . . . . . . . Relay Couplers Released . | . . . . . . . . . . Fabnet Peak Effective % . | . . . . . . . . . . Robots Rewired 4 | . . . . . 4 . . . . Allies Hacked . | . . . . . . . . . . Hacks Repelled . | . . . . . . . . . . Allies | -11 -10 -10 -9 -9 -9 -8 -8 -8 -8 -------- Run | Jun Mat Min Mat Min Exi Min Mat Gar Mat Total Allies 7 | . . 3 . . 4 . . . . Largest Group 4 | . . 3 2 . 4 3 . . . Highest-Rated Group 73 | . . 73 42 . 58 50 . . . Highest-Rated Ally 31 | . . 31 31 . 21 21 . . . Total Orders . | . . . . . . . . . . Ally Attacks 28 | . . . 7 . . 21 . . . Total Damage 582 | . . . 105 . . 477 . . . Kills 5 | . . . 2 . . 3 . . . Allies Corrupted . | . . . . . . . . . . Allies Melted . | . . . . . . . . . . Intel | -11 -10 -10 -9 -9 -9 -8 -8 -8 -8 ------- Run | Jun Mat Min Mat Min Exi Min Mat Gar Mat Robot Analysis Total 5 | . 2 . . . . 1 2 . . Derelict Logs Recovered 3 | . . 2 . 1 . . . . . Drone Launches . | . . . . . . . . . . Drone Recoveries . | . . . . . . . . . . Exploration | -11 -10 -10 -9 -9 -9 -8 -8 -8 -8 ------------- Run | Jun Mat Min Mat Min Exi Min Mat Gar Mat Turns Passed 8184 | 6 589 526 828 623 690 1122 857 2509 434 Spaces Moved 3985 | 1 461 477 538 409 443 494 321 725 116 Core . | . . . . . . . . . . Treads 2482 | . . . 210 409 443 494 321 605 . Legs . | . . . . . . . . . . Wheels 1038 | 1 461 477 99 . . . . . . Hover . | . . . . . . . . . . Flight 465 | . . . 229 . . . . 120 116 Fastest Speed 34 | 80 80 80 34 145 145 145 150 150 349 Average Speed 158 | 80 86 93 88 145 145 210 173 244 349 Slowest Speed 400 | 80 95 95 145 145 145 225 230 400 349 Overloaded Moves . | . . . . . . . . . . Propulsion Burnouts . | . . . . . . . . . . Robots Hopped 3 | . . . 3 . . . . . . Cave-ins Triggered . | . . . . . . . . . . Exploration Rate (%) 64 | 2 92 94 58 92 89 98 38 68 10 Regions Visited 9 Branch Regions 4 Pre-discovered Areas 1 | . . . 1 . . . . . . Known Exits Taken 3 | . . . 1 1 . . 1 . . Unknown Exits Taken 5 | 1 1 1 . . 1 1 . . . Scrap Searched 3 | . . 1 . 1 . 1 . . . Spaces Dug 4 | . . . 2 . . . . 2 . Terrain Destroyed 238 | . . . 3 . . 15 . 220 . Melee 3 | . . . 1 . . . . 2 . Projectile 5 | . . . 2 . . . . 3 . AOE 230 | . . . . . . 15 . 215 . Terrain Rammed . | . . . . . . . . . . Walls Destroyed . | . . . . . . . . . . Machines Disabled . | . . . . . . . . . . Actions | -11 -10 -10 -9 -9 -9 -8 -8 -8 -8 --------- Run | Jun Mat Min Mat Min Exi Min Mat Gar Mat Total 5222 | 4 566 554 751 429 480 545 511 1243 139 Wait 538 | . 41 65 45 13 . 26 92 237 19 Move 3972 | . 460 476 532 408 442 493 321 724 116 Hop 2 | . . . 2 . . . . . . Pick Up 82 | . 9 5 27 1 5 6 8 20 1 Fast Attach 31 | . 2 . 8 . . . 6 14 1 Attach 38 | . . 1 9 . . 1 6 21 . Detach 11 | . 1 . 2 . . . 3 5 . Swap 50 | 4 . 1 19 . 3 2 3 18 . Drop 67 | . 8 3 25 1 5 1 10 14 . Fire 332 | . 45 3 81 6 6 16 62 113 . Melee 69 | . . . 1 . . . . 68 . Ram 2 | . . . . . . . . . 2 Kick . | . . . . . . . . . . Crush 3 | . . . . . . . . 3 . Escape Stasis 6 | . . . . . . . . 6 . Rewire 19 | . . . . . 19 . . . . Trap . | . . . . . . . . . . Miscellaneous . | . . . . . . . . . . Route ------- -11/Junkyard -10/Materials (discovered 4 exits: *Mat x3 / [*Min]) -10/Mines (discovered 2 exits: *Mat x2) -9/Materials (discovered 4 exits: *Mat x2 / *Min x2) -9/Mines (discovered 4 exits: *Mat x2 / *Exi / [*Zio]) -9/Exiles -8/Mines (discovered 2 exits: *Mat x2) -8/Materials -8/Garrison (discovered 2 exits: *Mat x2) -8/Materials History --------- Turn | Location | Event 7 | -11/Junkyard | Discovered new exit (range 0) 7 | -11/Junkyard | Entered Materials 32 | -10/Materials | Discovered new exit (range 9) 283 | -10/Materials | Discovered new exit (range 16) 328 | -10/Materials | Build established: Mutant 418 | -10/Materials | Discovered new exit (range 10) 542 | -10/Materials | Discovered new exit (range 9) 596 | -10/Materials | Entered Mines 632 | -10/Mines | Met a Derelict bent on vengeance 662 | -10/Mines | Discovered new exit (range 8) 665 | -10/Mines | Learned Materials machine intel 668 | -10/Mines | Received a Mining Laser from a helpful Derelict 867 | -10/Mines | Found a hidden stash of uninstalled traps 909 | -10/Mines | Discovered new exit (range 11) 1122 | -10/Mines | Entered Materials 1122 | -9/Materials | Accompanied by 2 allies 1122 | -9/Materials | Evolved 2 slots: Propulsion x1, Utility x1 1123 | -9/Materials | Loaded intel: 62 machine locations 1127 | -9/Materials | Led the pair of lost Derelicts to an unsafe place 1237 | -9/Materials | Destroyed 7 combat bots 1453 | -9/Materials | Discovered new exit (range 16) 1467 | -9/Materials | Discovered new exit (range 17) 1567 | -9/Materials | Identified exit to Mines 1950 | -9/Materials | Entered Mines 2003 | -9/Mines | Identified exit to Exiles 2078 | -9/Mines | Discovered new exit (range 7) 2438 | -9/Mines | A Derelict revealed a hidden shortcut to a safe place 2514 | -9/Mines | Discovered new exit (range 12) 2515 | -9/Mines | Received a Rocket Launcher from a helpful Derelict 2568 | -9/Mines | Deemed a non-threat by the Exiles lab entrance 2573 | -9/Mines | Entered Exiles 2573 | -9/Exiles | Found Exiles lab destroyed 2799 | -9/Exiles | Opened EX-Vault 2812 | -9/Exiles | Found Cloak of Protection 3250 | -9/Exiles | Discovered new exit (range 11) 3263 | -9/Exiles | Entered Mines 3263 | -8/Mines | Accompanied by 4 allies 3263 | -8/Mines | Discovered new exit (range 15) 3876 | -8/Mines | Discovered new exit (range 11) 4385 | -8/Mines | Entered Materials 4385 | -8/Materials | Evolved 2 slots: Utility x2 4776 | -8/Materials | Build established: Hacker-Mutant 5242 | -8/Materials | Identified exit to Garrison 5242 | -8/Materials | Entered Garrison 5290 | -8/Garrison | Triggered checkpoint 5306 | -8/Garrison | System corruption reached 10% 5345 | -8/Garrison | Lost 6 parts (1p2n2u1w) 5496 | -8/Garrison | Triggered checkpoint 5613 | -8/Garrison | Build established: Mutant 5763 | -8/Garrison | Spotted B-75 Beast 6177 | -8/Garrison | Destroyed B-75 Beast 6208 | -8/Garrison | Lost 3 parts (2u1w) 6434 | -8/Garrison | Core integrity fell below 50% 7027 | -8/Garrison | Build established: Hacker-Mutant 7046 | -8/Garrison | Triggered checkpoint 7135 | -8/Garrison | Discovered new exit (range 15) 7269 | -8/Garrison | Triggered checkpoint 7280 | -8/Garrison | Triggered checkpoint 7291 | -8/Garrison | Core integrity fell below 20% 7353 | -8/Garrison | Lost 7 parts (2n2u3w) 7551 | -8/Garrison | Discovered new exit (range 10) 7751 | -8/Garrison | Entered Materials 8151 | -8/Materials | First assault squad dispatched 8185 | -8/Materials | Destroyed by Y-45 Defender with Heavy Assault Rifle Last Messages --------------- 1x Cld. Ion Engine (1 escort) A-02 Transporter 3x Imp. EM Shotgun 2x Adv. Beam Rifle (2 escorts) A-02 Transporter 5x Adv. Beam Rifle 1x Adv. EMP Blaster (2 escorts) A-02 Transporter 3x Aerolev Unit 3x Prc. Beam Rifle (2 escorts) 08151_ ALERT: Significant disruption in Zone 1T, assault force dispatched. 08155_ Terminal disabled. 08164_ System corrupted: Heat flow error (+238). 08173_ Acquired Hvy. Mace. 08174_ Slug penetrates Wall. 08178_ Critical hit (Burn: +18). Map ----- +----------------------------------------------------+ | ???????# / """ ## #???????? | | ######## # """ ## #???????? | | ## # ## #???????? | | """ ## ######### #???????? | | """ # ######## #???????? | | """ # # #???????? | | + # #???????? | | # # #???????? | | ! # ######## #???????? | | #######??????# #???????? | | ! #????????????# #???????? | | #######????????????# #???????? | | ???????????????????# #???????? | | ???????????????????# #???????? | | ?????######????????# #???????? | | ???+? #????????# #???????? | | ????? "" #????????# #???????? | | ????? """#????????# #???????? | | ????? S"#????????# #???????? | | ????? #????????# #???????? | | ????? #????????# #?####### | | ?????#+####??????### ### # | | ????? ######### # # | | ????? # !! # | | ????? Yh !! # | | ????? ! #Y@! # | | ????? ######### # # | | ?????#####??####### ## # | | ????????????# # ######## | | ????????????# # # # | | ????????????# # # """ # | | ????????????# # # """ # | | ?????######## # # """ # | | ????? + # # # | | ?????######## + + # | | ????? # # # # | | ????? """ # # # # | | ????? """ # # # # | | ????? """ # # # """ # | | ????? # # # """ # | | ?????????????????????????????? | | ?????????????????????????????? | | ?????????????????????????????? | | ?????????????????????????????? | | ?????????????????????????????? | | ?????????????????????????????? | | ?????????????????????????????? | | ?????????????????????????????? | | ?????????????????????????????? | | ?????????????????????????????? | +----------------------------------------------------+ Best States ------------- Heat Dissipation 58 Energy Generation 18 Energy Capacity 290 Matter Stores 300 Matter Capacity 300 Sight Range 16 Terrain Scan Density 10 Armor Coverage 450 Resistance: TH 15 Evasion (%) 63 Targeting Accuracy 5 Recoil Reduction 3 Offensive Hacking 30 Item Schematics ----------------- None Robot Schematics ------------------ None Fabricated ------------ Nothing Alien Tech Used ----------------- None Achievements -------------- None Challenges ------------ None Game ------ Seed ContainmentHardenedBeam Manual? 0 Play Time 01:00:24 Cumulative 371.2 hours Start 2023.02.23 @ 16:06:09 End 2023.02.23 @ 17:06:26 Sessions 1 Manual Loads 0 Difficulty Rogue Special Mode None Game No. 429 Rogue 429 Adventurer 0 Explorer 0 Win Type - Total 0 Types 0/0/0/0/0/0/0/0/0 Lore% 51 Gallery% 74 Achievement% 61 Wizard Run 0 Options --------- ASCII 0 Keyboard 0 Movement Mouse Keybinds 0 Fullscreen 2 Font 24/Smallcaps Map View 76x50 Tactical HUD 1 Map Filters NONE Filters NONE Steam 1 RUN: cbb349fe-14fd-4daf-960b-2fc936f6a220